[Event "Titled Tuesday Blitz May 9 Late 2023"]
[White "Liu, Casper"]
[Black "TimGrutter03"]
[WhiteFideId "1454153"]
[WhiteElo "2221"]
[BlackElo "2610"]
[Result "0-1"]
[Round "05"]
[TimeControl "180+2"]
[Date "2023.05.09"]
[WhiteClock "0:00:13"]
[BlackClock "0:00:06"]

1. b3 {[%clk 0:03:00]}  d5 {[%clk 0:02:52]} 2. Bb2 {[%clk 0:03:01]}  Nc6 {[%clk 0:02:37]} 3. Nf3 {[%clk 0:03:01]}  Bg4 {[%clk 0:02:30]} 4. g3 {[%clk 0:03:00]}  Bxf3 {[%clk 0:02:29]} 5. exf3 {[%clk 0:03:01]}  Nf6 {[%clk 0:02:23]} 6. Bg2 {[%clk 0:03:02]}  e6 {[%clk 0:02:10]} 7. O-O {[%clk 0:03:03]}  Be7 {[%clk 0:01:57]} 8. f4 {[%clk 0:03:03]}  O-O {[%clk 0:01:55]} 9. d3 {[%clk 0:03:04]}  Nd7 {[%clk 0:01:52]} 10. Nd2 {[%clk 0:02:55]}  a5 {[%clk 0:01:51]} 11. Nf3 {[%clk 0:02:55]}  Bf6 {[%clk 0:01:47]} 12. Bxf6 {[%clk 0:02:54]}  Qxf6 {[%clk 0:01:47]} 13. Re1 {[%clk 0:02:54]}  a4 {[%clk 0:01:47]} 14. d4 {[%clk 0:02:52]}  axb3 {[%clk 0:01:44]} 15. axb3 {[%clk 0:02:53]}  Qe7 {[%clk 0:01:33]} 16. Ne5 {[%clk 0:02:51]}  Ndxe5 {[%clk 0:01:33]} 17. fxe5 {[%clk 0:02:50]}  Qb4 {[%clk 0:01:32]} 18. c4 {[%clk 0:02:20]}  dxc4 {[%clk 0:01:09]} 19. bxc4 {[%clk 0:02:15]}  Qxc4 {[%clk 0:01:06]} 20. Rc1 {[%clk 0:02:13]}  Qxd4 {[%clk 0:01:01]} 21. Qxd4 {[%clk 0:01:50]}  Nxd4 {[%clk 0:01:01]} 22. Rxc7 {[%clk 0:01:41]}  Ra2 {[%clk 0:00:42]} 23. Bxb7 {[%clk 0:01:27]}  Ra7 {[%clk 0:00:35]} 24. Rd1 {[%clk 0:01:13]}  Nf3+ {[%clk 0:00:25]} 25. Kg2 {[%clk 0:01:13]}  Nxe5 {[%clk 0:00:25]} 26. f4 {[%clk 0:00:58]}  Ng4 {[%clk 0:00:25]} 27. Rdd7 {[%clk 0:00:57]}  Nf6 {[%clk 0:00:25]} 28. Re7 {[%clk 0:00:47]}  Ra2+ {[%clk 0:00:21]} 29. Kh3 {[%clk 0:00:38]}  h5 {[%clk 0:00:20]} 30. Bf3 {[%clk 0:00:34]}  Rf2 {[%clk 0:00:19]} 31. Bd1 {[%clk 0:00:32]}  g6 {[%clk 0:00:16]} 32. Kh4 {[%clk 0:00:27]}  Rxh2+ {[%clk 0:00:15]} 33. Kg5 {[%clk 0:00:27]}  Nd5 {[%clk 0:00:10]} 34. Bb3 {[%clk 0:00:15]}  Nxc7 {[%clk 0:00:09]} 35. Rxc7 {[%clk 0:00:16]}  Rg2 {[%clk 0:00:07]} 36. Kh6 {[%clk 0:00:13]}  Re2 {[%clk 0:00:04]} 37. Bc4 {[%clk 0:00:09]}  Rc2 {[%clk 0:00:02]} 38. f5 {[%clk 0:00:09]}  gxf5 {[%clk 0:00:02]} 39. Kxh5 {[%clk 0:00:09]}  Kg7 {[%clk 0:00:03]} 40. Kg5 {[%clk 0:00:10]}  Rd8 {[%clk 0:00:02]} 41. g4 {[%clk 0:00:07]}  Rd4 {[%clk 0:00:02]} 42. Bxe6 {[%clk 0:00:06]}  Rxc7 {[%clk 0:00:02]} 43. Bxf5 {[%clk 0:00:06]}  Rc5 {[%clk 0:00:03]} 44. Kh5 {[%clk 0:00:07]}  Rdd5 {[%clk 0:00:03]} 45. Kh4 {[%clk 0:00:07]}  f6 {[%clk 0:00:03]} 46. Kg3 {[%clk 0:00:07]}  Rxf5 {[%clk 0:00:03]} 47. Kh4 {[%clk 0:00:08]}  Rg5 {[%clk 0:00:03]} 48. Kh3 {[%clk 0:00:09]}  Rc4 {[%clk 0:00:03]} 49. Kg3 {[%clk 0:00:10]}  Rcxg4+ {[%clk 0:00:04]} 50. Kh3 {[%clk 0:00:11]}  Ra4 {[%clk 0:00:03]} 51. Kh2 {[%clk 0:00:11]}  Rb5 {[%clk 0:00:04]} 52. Kh3 {[%clk 0:00:11]}  Rb3+ {[%clk 0:00:04]} 53. Kh2 {[%clk 0:00:12]}  Ra2+ {[%clk 0:00:05]} 54. Kh1 {[%clk 0:00:13]}  Rb1# {[%clk 0:00:06]} 0-1


[Site "https://www.chess.com"]

[Event "Titled Tuesday Blitz May 9 Late 2023"]
[White "DubiousM0ves532"]
[Black "Filgueira, Hernan"]
[BlackFideId "101770"]
[WhiteElo "2460"]
[BlackElo "2363"]
[Result "0-1"]
[Round "05"]
[TimeControl "180+2"]
[Date "2023.05.09"]
[WhiteClock "0:00:00"]
[BlackClock "0:00:15"]

1. Nf3 {[%clk 0:03:00]}  d5 {[%clk 0:02:59]} 2. g3 {[%clk 0:02:58]}  c6 {[%clk 0:02:58]} 3. Bg2 {[%clk 0:02:58]}  Bg4 {[%clk 0:02:59]} 4. O-O {[%clk 0:02:58]}  Nf6 {[%clk 0:02:59]} 5. d4 {[%clk 0:02:58]}  Nbd7 {[%clk 0:02:59]} 6. b3 {[%clk 0:02:58]}  e6 {[%clk 0:02:59]} 7. Bb2 {[%clk 0:02:58]}  Be7 {[%clk 0:02:59]} 8. Nbd2 {[%clk 0:02:58]}  O-O {[%clk 0:02:59]} 9. c4 {[%clk 0:02:58]}  a5 {[%clk 0:02:59]} 10. Qe1 {[%clk 0:02:36]}  h6 {[%clk 0:02:51]} 11. e4 {[%clk 0:02:35]}  dxe4 {[%clk 0:02:41]} 12. Nxe4 {[%clk 0:02:35]}  Nxe4 {[%clk 0:02:41]} 13. Qxe4 {[%clk 0:02:36]}  Bf5 {[%clk 0:02:41]} 14. Qe2 {[%clk 0:02:33]}  Bf6 {[%clk 0:02:40]} 15. Rad1 {[%clk 0:02:29]}  Re8 {[%clk 0:02:39]} 16. Ne5 {[%clk 0:02:27]}  Qc7 {[%clk 0:02:32]} 17. Rfe1 {[%clk 0:02:25]}  a4 {[%clk 0:02:27]} 18. b4 {[%clk 0:01:58]}  Nxe5 {[%clk 0:02:22]} 19. dxe5 {[%clk 0:01:58]}  Be7 {[%clk 0:02:22]} 20. c5 {[%clk 0:01:55]}  a3 {[%clk 0:02:16]} 21. Bc3 {[%clk 0:01:53]}  Red8 {[%clk 0:02:13]} 22. Rd6 {[%clk 0:01:50]}  Bxd6 {[%clk 0:02:09]} 23. exd6 {[%clk 0:01:51]}  Qd7 {[%clk 0:02:09]} 24. Qc4 {[%clk 0:01:16]}  Re8 {[%clk 0:02:04]} 25. f4 {[%clk 0:01:13]}  f6 {[%clk 0:01:54]} 26. Ba1 {[%clk 0:01:08]}  h5 {[%clk 0:01:51]} 27. Bf3 {[%clk 0:01:06]}  Qf7 {[%clk 0:01:50]} 28. b5 {[%clk 0:00:59]}  Rac8 {[%clk 0:01:43]} 29. bxc6 {[%clk 0:00:53]}  bxc6 {[%clk 0:01:41]} 30. Qa4 {[%clk 0:00:52]}  Qb7 {[%clk 0:01:26]} 31. Qxa3 {[%clk 0:00:37]}  Bg6 {[%clk 0:01:24]} 32. Bc3 {[%clk 0:00:21]}  Bf7 {[%clk 0:01:18]} 33. Qa4 {[%clk 0:00:16]}  Red8 {[%clk 0:01:16]} 34. Qc2 {[%clk 0:00:13]}  Qb5 {[%clk 0:01:14]} 35. Bd4 {[%clk 0:00:13]}  Qb4 {[%clk 0:01:05]} 36. Rd1 {[%clk 0:00:11]}  Rd7 {[%clk 0:01:02]} 37. Bf2 {[%clk 0:00:11]}  h4 {[%clk 0:01:00]} 38. Rb1 {[%clk 0:00:10]}  Qa5 {[%clk 0:00:56]} 39. Rb6 {[%clk 0:00:10]}  hxg3 {[%clk 0:00:55]} 40. hxg3 {[%clk 0:00:10]}  Qa3 {[%clk 0:00:53]} 41. Bxc6 {[%clk 0:00:08]}  Rdd8 {[%clk 0:00:50]} 42. Be4 {[%clk 0:00:06]}  f5 {[%clk 0:00:41]} 43. Bg2 {[%clk 0:00:06]}  Qa5 {[%clk 0:00:35]} 44. Qb3 {[%clk 0:00:05]}  Qd2 {[%clk 0:00:32]} 45. Qb2 {[%clk 0:00:05]}  Qd1+ {[%clk 0:00:32]} 46. Bf1 {[%clk 0:00:04]}  Ra8 {[%clk 0:00:29]} 47. a3 {[%clk 0:00:03]}  Bh5 {[%clk 0:00:28]} 48. c6 {[%clk 0:00:02]}  Rxa3 {[%clk 0:00:25]} 49. c7 {[%clk 0:00:01]}  Rda8 {[%clk 0:00:24]} 50. Rb8+ {[%clk 0:00:01]}  Kh7 {[%clk 0:00:23]} 51. c8=Q {[%clk 0:00:01]}  Rxb8 {[%clk 0:00:23]} 52. Qcxb8 {[%clk 0:00:01]}  Ra1 {[%clk 0:00:18]} 53. Qxa1 {[%clk 0:00:01]}  Qxa1 {[%clk 0:00:18]} 54. Qc7 {[%clk 0:00:02]}  Be2 {[%clk 0:00:16]} 55. Qc4 {[%clk 0:00:00]}  Bxc4 {[%clk 0:00:15]} 0-1


[Site "https://www.chess.com"]

[Event "Titled Tuesday Blitz May 9 Late 2023"]
[White "Foerster-Yialamas, Lucas"]
[Black "MKlose11"]
[WhiteFideId "30901774"]
[WhiteElo "2067"]
[BlackElo "2598"]
[Result "0-1"]
[Round "05"]
[TimeControl "180+2"]
[Date "2023.05.09"]
[WhiteClock "0:00:03"]
[BlackClock "0:00:09"]

1. c4 {[%clk 0:02:48]}  Nf6 {[%clk 0:02:52]} 2. Nc3 {[%clk 0:02:47]}  c5 {[%clk 0:02:53]} 3. e4 {[%clk 0:02:46]}  Nc6 {[%clk 0:02:53]} 4. Nge2 {[%clk 0:02:45]}  d6 {[%clk 0:02:53]} 5. d4 {[%clk 0:02:45]}  cxd4 {[%clk 0:02:54]} 6. Nxd4 {[%clk 0:02:46]}  g6 {[%clk 0:02:55]} 7. Be2 {[%clk 0:02:45]}  Bg7 {[%clk 0:02:55]} 8. Be3 {[%clk 0:02:45]}  O-O {[%clk 0:02:55]} 9. O-O {[%clk 0:02:45]}  Bd7 {[%clk 0:02:56]} 10. Qd2 {[%clk 0:02:38]}  Re8 {[%clk 0:02:55]} 11. Nd5 {[%clk 0:02:35]}  Nxe4 {[%clk 0:02:51]} 12. Qd3 {[%clk 0:02:19]}  Nf6 {[%clk 0:02:44]} 13. a3 {[%clk 0:02:10]}  Rc8 {[%clk 0:02:43]} 14. b4 {[%clk 0:02:10]}  Nxd5 {[%clk 0:02:12]} 15. cxd5 {[%clk 0:02:10]}  Nxd4 {[%clk 0:02:12]} 16. Bxd4 {[%clk 0:02:11]}  Bxd4 {[%clk 0:02:12]} 17. Qxd4 {[%clk 0:02:12]}  Qb6 {[%clk 0:02:13]} 18. Qxb6 {[%clk 0:02:12]}  axb6 {[%clk 0:02:14]} 19. Rac1 {[%clk 0:02:09]}  Kf8 {[%clk 0:02:09]} 20. Bd3 {[%clk 0:02:02]}  Ba4 {[%clk 0:02:07]} 21. f4 {[%clk 0:01:58]}  Bb3 {[%clk 0:02:05]} 22. Be4 {[%clk 0:01:38]}  Red8 {[%clk 0:01:38]} 23. g4 {[%clk 0:01:27]}  f6 {[%clk 0:01:32]} 24. h4 {[%clk 0:01:24]}  Kf7 {[%clk 0:01:28]} 25. f5 {[%clk 0:01:19]}  Bc4 {[%clk 0:01:14]} 26. Rfe1 {[%clk 0:01:01]}  Bb5 {[%clk 0:01:09]} 27. fxg6+ {[%clk 0:00:58]}  hxg6 {[%clk 0:01:08]} 28. h5 {[%clk 0:00:58]}  gxh5 {[%clk 0:01:07]} 29. gxh5 {[%clk 0:00:59]}  Rxc1 {[%clk 0:00:54]} 30. Rxc1 {[%clk 0:00:58]}  Be8 {[%clk 0:00:40]} 31. h6 {[%clk 0:00:54]}  f5 {[%clk 0:00:27]} 32. Bxf5 {[%clk 0:00:53]}  Kf6 {[%clk 0:00:27]} 33. Be6 {[%clk 0:00:37]}  Bg6 {[%clk 0:00:20]} 34. Kf2 {[%clk 0:00:30]}  Ra8 {[%clk 0:00:17]} 35. Rc3 {[%clk 0:00:28]}  Rh8 {[%clk 0:00:14]} 36. Rh3 {[%clk 0:00:28]}  Kg5 {[%clk 0:00:14]} 37. h7 {[%clk 0:00:26]}  Rxh7 {[%clk 0:00:15]} 38. Rxh7 {[%clk 0:00:26]}  Bxh7 {[%clk 0:00:15]} 39. Bc8 {[%clk 0:00:26]}  Kf4 {[%clk 0:00:14]} 40. Bxb7 {[%clk 0:00:27]}  Ke5 {[%clk 0:00:14]} 41. Ke3 {[%clk 0:00:26]}  Be4 {[%clk 0:00:14]} 42. a4 {[%clk 0:00:25]}  Bxd5 {[%clk 0:00:14]} 43. Bc8 {[%clk 0:00:21]}  Bc6 {[%clk 0:00:14]} 44. a5 {[%clk 0:00:21]}  bxa5 {[%clk 0:00:10]} 45. bxa5 {[%clk 0:00:22]}  Kd5 {[%clk 0:00:06]} 46. a6 {[%clk 0:00:20]}  Kc5 {[%clk 0:00:06]} 47. Kf4 {[%clk 0:00:11]}  Kb6 {[%clk 0:00:07]} 48. Kf5 {[%clk 0:00:11]}  Bd5 {[%clk 0:00:06]} 49. Kf4 {[%clk 0:00:08]}  Bc4 {[%clk 0:00:06]} 50. Kf5 {[%clk 0:00:07]}  Bb3 {[%clk 0:00:06]} 51. Kg6 {[%clk 0:00:05]}  Bd5 {[%clk 0:00:05]} 52. Kf5 {[%clk 0:00:05]}  Bc4 {[%clk 0:00:05]} 53. Kg6 {[%clk 0:00:04]}  Bxa6 {[%clk 0:00:05]} 54. Be6 {[%clk 0:00:04]}  Kc5 {[%clk 0:00:05]} 55. Kf7 {[%clk 0:00:04]}  Bc4 {[%clk 0:00:05]} 56. Kxe7 {[%clk 0:00:01]}  Bxe6 {[%clk 0:00:05]} 57. Kxe6 {[%clk 0:00:02]}  d5 {[%clk 0:00:06]} 58. Ke5 {[%clk 0:00:03]}  d4 {[%clk 0:00:06]} 59. Ke4 {[%clk 0:00:04]}  Kc4 {[%clk 0:00:07]} 60. Kf3 {[%clk 0:00:04]}  Kc3 {[%clk 0:00:07]} 61. Ke2 {[%clk 0:00:05]}  Kc2 {[%clk 0:00:08]} 62. Ke1 {[%clk 0:00:03]}  d3 {[%clk 0:00:09]} 0-1


[Site "https://www.chess.com"]

[Event "Titled Tuesday Blitz May 9 Late 2023"]
[White "Nikologorskiy, Konstantin"]
[Black "Koutsin"]
[WhiteFideId "24111708"]
[WhiteElo "2273"]
[BlackElo "2443"]
[Result "1-0"]
[Round "05"]
[TimeControl "180+2"]
[Date "2023.05.09"]
[WhiteClock "0:01:32"]
[BlackClock "0:00:00"]

1. d4 {[%clk 0:02:57]}  e6 {[%clk 0:03:00]} 2. c4 {[%clk 0:02:58]}  Nf6 {[%clk 0:03:00]} 3. Nf3 {[%clk 0:02:59]}  b6 {[%clk 0:03:00]} 4. g3 {[%clk 0:02:59]}  Ba6 {[%clk 0:02:59]} 5. b3 {[%clk 0:03:00]}  Bb4+ {[%clk 0:02:57]} 6. Bd2 {[%clk 0:03:00]}  Be7 {[%clk 0:02:57]} 7. Bg2 {[%clk 0:03:00]}  c6 {[%clk 0:02:58]} 8. O-O {[%clk 0:03:00]}  d5 {[%clk 0:02:58]} 9. Bc3 {[%clk 0:03:01]}  O-O {[%clk 0:02:57]} 10. Nbd2 {[%clk 0:03:01]}  Nbd7 {[%clk 0:02:47]} 11. Re1 {[%clk 0:03:01]}  c5 {[%clk 0:02:33]} 12. e4 {[%clk 0:03:01]}  dxe4 {[%clk 0:01:52]} 13. Nxe4 {[%clk 0:03:02]}  Nxe4 {[%clk 0:01:52]} 14. Rxe4 {[%clk 0:03:03]}  Bb7 {[%clk 0:01:50]} 15. Re2 {[%clk 0:03:03]}  cxd4 {[%clk 0:01:39]} 16. Bxd4 {[%clk 0:02:59]}  Qc7 {[%clk 0:01:19]} 17. Rd2 {[%clk 0:02:57]}  Rad8 {[%clk 0:01:16]} 18. Qc2 {[%clk 0:02:55]}  Nc5 {[%clk 0:00:34]} 19. Rad1 {[%clk 0:02:54]}  Rfe8 {[%clk 0:00:20]} 20. Qc3 {[%clk 0:02:54]}  Bf8 {[%clk 0:00:20]} 21. Qc2 {[%clk 0:02:40]}  Ne4 {[%clk 0:00:18]} 22. Re2 {[%clk 0:02:38]}  Nc5 {[%clk 0:00:18]} 23. h4 {[%clk 0:02:31]}  h6 {[%clk 0:00:18]} 24. Kh2 {[%clk 0:02:29]}  Bc6 {[%clk 0:00:17]} 25. b4 {[%clk 0:02:17]}  Ba4 {[%clk 0:00:16]} 26. Qc1 {[%clk 0:02:07]}  Bxd1 {[%clk 0:00:17]} 27. Qxd1 {[%clk 0:02:08]}  Na6 {[%clk 0:00:15]} 28. b5 {[%clk 0:01:43]}  Nc5 {[%clk 0:00:15]} 29. Qc2 {[%clk 0:01:43]}  f6 {[%clk 0:00:11]} 30. Be3 {[%clk 0:01:40]}  Qd7 {[%clk 0:00:08]} 31. Nd4 {[%clk 0:01:40]}  e5 {[%clk 0:00:06]} 32. Bc6 {[%clk 0:01:34]}  Qf7 {[%clk 0:00:00]} 33. Nf5 {[%clk 0:01:32]} 1-0


[Site "https://www.chess.com"]

[Event "Titled Tuesday Blitz May 9 Late 2023"]
[White "sebastianmarinp"]
[Black "Bruedigam, Martin"]
[BlackFideId "24608033"]
[WhiteElo "2438"]
[BlackElo "2331"]
[Result "0-1"]
[Round "05"]
[TimeControl "180+2"]
[Date "2023.05.09"]
[WhiteClock "0:00:00"]
[BlackClock "0:00:04"]

1. e4 {[%clk 0:03:00]}  c6 {[%clk 0:02:59]} 2. d4 {[%clk 0:02:59]}  d5 {[%clk 0:02:59]} 3. e5 {[%clk 0:03:00]}  Bf5 {[%clk 0:02:59]} 4. Nf3 {[%clk 0:02:59]}  e6 {[%clk 0:02:58]} 5. Be2 {[%clk 0:02:59]}  Nd7 {[%clk 0:02:59]} 6. O-O {[%clk 0:02:58]}  a5 {[%clk 0:02:58]} 7. a4 {[%clk 0:02:53]}  Ne7 {[%clk 0:02:53]} 8. Nbd2 {[%clk 0:02:52]}  h6 {[%clk 0:02:52]} 9. Nb3 {[%clk 0:02:44]}  Bh7 {[%clk 0:02:51]} 10. c3 {[%clk 0:02:30]}  Nc8 {[%clk 0:02:49]} 11. Be3 {[%clk 0:02:24]}  Qb6 {[%clk 0:02:46]} 12. Nfd2 {[%clk 0:02:12]}  Be7 {[%clk 0:02:44]} 13. Kh1 {[%clk 0:02:10]}  Qc7 {[%clk 0:02:07]} 14. f4 {[%clk 0:02:06]}  Ncb6 {[%clk 0:02:03]} 15. g4 {[%clk 0:01:53]}  h5 {[%clk 0:01:57]} 16. f5 {[%clk 0:01:43]}  hxg4 {[%clk 0:01:53]} 17. fxe6 {[%clk 0:01:40]}  fxe6 {[%clk 0:01:53]} 18. Bxg4 {[%clk 0:01:40]}  Nf8 {[%clk 0:01:51]} 19. Bh5+ {[%clk 0:01:36]}  g6 {[%clk 0:01:43]} 20. Bg4 {[%clk 0:01:28]}  O-O-O {[%clk 0:01:42]} 21. Nxa5 {[%clk 0:01:20]}  g5 {[%clk 0:01:37]} 22. Nab3 {[%clk 0:01:14]}  Rd7 {[%clk 0:01:06]} 23. a5 {[%clk 0:01:11]}  Nc4 {[%clk 0:01:05]} 24. Nxc4 {[%clk 0:01:09]}  dxc4 {[%clk 0:01:05]} 25. Nd2 {[%clk 0:01:08]}  c5 {[%clk 0:00:59]} 26. Nxc4 {[%clk 0:01:00]}  Be4+ {[%clk 0:00:52]} 27. Bf3 {[%clk 0:00:55]}  Bxf3+ {[%clk 0:00:51]} 28. Qxf3 {[%clk 0:00:56]}  Kb8 {[%clk 0:00:49]} 29. Nb6 {[%clk 0:00:51]}  Rd8 {[%clk 0:00:42]} 30. Qg3 {[%clk 0:00:35]}  cxd4 {[%clk 0:00:22]} 31. cxd4 {[%clk 0:00:36]}  Bb4 {[%clk 0:00:22]} 32. Rac1 {[%clk 0:00:25]}  Qh7 {[%clk 0:00:19]} 33. Nc4 {[%clk 0:00:17]}  Ng6 {[%clk 0:00:15]} 34. a6 {[%clk 0:00:16]}  Nh4 {[%clk 0:00:14]} 35. axb7 {[%clk 0:00:11]}  Qe4+ {[%clk 0:00:14]} 36. Kg1 {[%clk 0:00:07]}  Nf5 {[%clk 0:00:14]} 37. Qg2 {[%clk 0:00:05]}  Qxg2+ {[%clk 0:00:13]} 38. Kxg2 {[%clk 0:00:06]}  Kxb7 {[%clk 0:00:13]} 39. Bf2 {[%clk 0:00:06]}  Nxd4 {[%clk 0:00:12]} 40. Nd6+ {[%clk 0:00:05]}  Bxd6 {[%clk 0:00:12]} 41. exd6 {[%clk 0:00:06]}  Ne2 {[%clk 0:00:11]} 42. Rc7+ {[%clk 0:00:04]}  Kb8 {[%clk 0:00:11]} 43. Rd1 {[%clk 0:00:03]}  Nf4+ {[%clk 0:00:10]} 44. Kg3 {[%clk 0:00:03]}  Nd5 {[%clk 0:00:11]} 45. Rc6 {[%clk 0:00:01]}  Kb7 {[%clk 0:00:10]} 46. Rc5 {[%clk 0:00:01]}  Rxd6 {[%clk 0:00:10]} 47. Bd4 {[%clk 0:00:01]}  Rf8 {[%clk 0:00:10]} 48. Be5 {[%clk 0:00:01]}  Rc6 {[%clk 0:00:09]} 49. Rb5+ {[%clk 0:00:02]}  Kc8 {[%clk 0:00:08]} 50. Rb3 {[%clk 0:00:02]}  Kd7 {[%clk 0:00:09]} 51. Rbd3 {[%clk 0:00:03]}  Rb6 {[%clk 0:00:07]} 52. Bd4 {[%clk 0:00:03]}  Rb4 {[%clk 0:00:07]} 53. Re1 {[%clk 0:00:04]}  Rb5 {[%clk 0:00:07]} 54. Be5 {[%clk 0:00:03]}  Rf5 {[%clk 0:00:06]} 55. Kg2 {[%clk 0:00:03]}  Ke7 {[%clk 0:00:06]} 56. Kg3 {[%clk 0:00:03]}  Kf7 {[%clk 0:00:06]} 57. Bd4 {[%clk 0:00:04]}  Nf4 {[%clk 0:00:05]} 58. Rde3 {[%clk 0:00:02]}  Rbd5 {[%clk 0:00:03]} 59. Re4 {[%clk 0:00:02]}  Nd3 {[%clk 0:00:03]} 60. R1e3 {[%clk 0:00:02]}  Nf4 {[%clk 0:00:03]} 61. Rf3 {[%clk 0:00:02]}  Nh5+ {[%clk 0:00:03]} 62. Kg4 {[%clk 0:00:02]}  Rf4+ {[%clk 0:00:03]} 63. Rfxf4+ {[%clk 0:00:00]}  Nxf4 {[%clk 0:00:04]} 0-1


[Site "https://www.chess.com"]

[Event "Titled Tuesday Blitz May 9 Late 2023"]
[White "Schnaider, Ilan"]
[Black "Przybylski, Wojciech"]
[WhiteFideId "169013"]
[BlackFideId "1117599"]
[WhiteElo "2224"]
[BlackElo "2222"]
[Result "0-1"]
[Round "05"]
[TimeControl "180+2"]
[Date "2023.05.09"]
[WhiteClock "0:00:00"]
[BlackClock "0:00:05"]

1. e4 {[%clk 0:03:00]}  e5 {[%clk 0:02:53]} 2. Nf3 {[%clk 0:03:00]}  Nf6 {[%clk 0:02:52]} 3. d4 {[%clk 0:02:59]}  Nxe4 {[%clk 0:02:51]} 4. Bd3 {[%clk 0:02:59]}  d5 {[%clk 0:02:51]} 5. Nxe5 {[%clk 0:02:59]}  Nd7 {[%clk 0:02:49]} 6. Nc3 {[%clk 0:02:59]}  Nxc3 {[%clk 0:02:45]} 7. bxc3 {[%clk 0:02:59]}  Nxe5 {[%clk 0:02:44]} 8. dxe5 {[%clk 0:03:00]}  Bc5 {[%clk 0:02:43]} 9. O-O {[%clk 0:02:57]}  O-O {[%clk 0:02:42]} 10. Kh1 {[%clk 0:02:57]}  c6 {[%clk 0:02:26]} 11. f4 {[%clk 0:02:56]}  f5 {[%clk 0:02:25]} 12. c4 {[%clk 0:02:46]}  Be6 {[%clk 0:02:17]} 13. cxd5 {[%clk 0:02:46]}  Qxd5 {[%clk 0:02:08]} 14. Bb2 {[%clk 0:02:46]}  Rad8 {[%clk 0:01:57]} 15. Rf3 {[%clk 0:02:39]}  Be7 {[%clk 0:01:29]} 16. Rg3 {[%clk 0:02:36]}  Rf7 {[%clk 0:01:21]} 17. Qh5 {[%clk 0:02:31]}  c5 {[%clk 0:01:18]} 18. Be2 {[%clk 0:02:09]}  Qd2 {[%clk 0:01:08]} 19. Rf1 {[%clk 0:00:41]}  Qxc2 {[%clk 0:01:03]} 20. Bc1 {[%clk 0:00:40]}  Bc4 {[%clk 0:00:49]} 21. Bxc4 {[%clk 0:00:28]}  Qxc4 {[%clk 0:00:48]} 22. Qf3 {[%clk 0:00:28]}  Bf8 {[%clk 0:00:42]} 23. h4 {[%clk 0:00:22]}  Rfd7 {[%clk 0:00:41]} 24. Re1 {[%clk 0:00:15]}  Rd3 {[%clk 0:00:31]} 25. Be3 {[%clk 0:00:15]}  Qc3 {[%clk 0:00:28]} 26. Qf2 {[%clk 0:00:16]}  Rd1 {[%clk 0:00:25]} 27. Rxd1 {[%clk 0:00:12]}  Rxd1+ {[%clk 0:00:24]} 28. Kh2 {[%clk 0:00:13]}  Qa1 {[%clk 0:00:23]} 29. Rh3 {[%clk 0:00:05]}  Rh1+ {[%clk 0:00:18]} 30. Kg3 {[%clk 0:00:05]}  Rf1 {[%clk 0:00:19]} 31. Qe2 {[%clk 0:00:04]}  Qd1 {[%clk 0:00:13]} 32. Qc4+ {[%clk 0:00:03]}  Kh8 {[%clk 0:00:13]} 33. Qc3 {[%clk 0:00:02]}  Qg4+ {[%clk 0:00:11]} 34. Kh2 {[%clk 0:00:03]}  Qd1 {[%clk 0:00:10]} 35. e6 {[%clk 0:00:01]}  Qd6 {[%clk 0:00:09]} 36. e7 {[%clk 0:00:01]}  Qxe7 {[%clk 0:00:09]} 37. Bxc5 {[%clk 0:00:01]}  Qxc5 {[%clk 0:00:08]} 38. Qd3 {[%clk 0:00:02]}  Re1 {[%clk 0:00:07]} 39. Qf3 {[%clk 0:00:01]}  Qe7 {[%clk 0:00:06]} 40. h5 {[%clk 0:00:01]}  h6 {[%clk 0:00:06]} 41. Rg3 {[%clk 0:00:01]}  Qe2 {[%clk 0:00:06]} 42. Qd5 {[%clk 0:00:00]}  Qf2 {[%clk 0:00:05]} 0-1


[Site "https://www.chess.com"]

[Event "Titled Tuesday Blitz May 9 Late 2023"]
[White "Rios Escobar, Adan"]
[Black "Adewumi, Tanitoluwa"]
[WhiteFideId "3403645"]
[BlackFideId "30966396"]
[WhiteElo "2437"]
[BlackElo "2563"]
[Result "1-0"]
[Round "05"]
[TimeControl "180+2"]
[Date "2023.05.09"]
[WhiteClock "0:01:15"]
[BlackClock "0:00:01"]

1. d4 {[%clk 0:02:48]}  Nf6 {[%clk 0:02:59]} 2. g3 {[%clk 0:02:48]}  e6 {[%clk 0:02:58]} 3. c4 {[%clk 0:02:48]}  d5 {[%clk 0:02:57]} 4. Nf3 {[%clk 0:02:48]}  Bb4+ {[%clk 0:02:54]} 5. Nbd2 {[%clk 0:02:48]}  O-O {[%clk 0:02:51]} 6. Bg2 {[%clk 0:02:48]}  dxc4 {[%clk 0:02:44]} 7. a3 {[%clk 0:02:47]}  Ba5 {[%clk 0:02:41]} 8. O-O {[%clk 0:02:46]}  b5 {[%clk 0:02:31]} 9. Ne5 {[%clk 0:02:38]}  Nd5 {[%clk 0:02:04]} 10. e4 {[%clk 0:02:31]}  Nf6 {[%clk 0:01:02]} 11. Nb1 {[%clk 0:02:31]}  Bb7 {[%clk 0:01:01]} 12. Bg5 {[%clk 0:02:21]}  h6 {[%clk 0:00:55]} 13. Bxf6 {[%clk 0:02:18]}  Qxf6 {[%clk 0:00:56]} 14. Nc3 {[%clk 0:02:17]}  a6 {[%clk 0:00:45]} 15. a4 {[%clk 0:02:14]}  Bxc3 {[%clk 0:00:18]} 16. bxc3 {[%clk 0:02:10]}  Rd8 {[%clk 0:00:19]} 17. Nxc4 {[%clk 0:01:42]}  Qe7 {[%clk 0:00:06]} 18. Na5 {[%clk 0:01:39]}  Bc8 {[%clk 0:00:04]} 19. axb5 {[%clk 0:01:33]}  axb5 {[%clk 0:00:04]} 20. Nc6 {[%clk 0:01:34]}  Nxc6 {[%clk 0:00:02]} 21. Rxa8 {[%clk 0:01:33]}  b4 {[%clk 0:00:02]} 22. d5 {[%clk 0:01:25]}  exd5 {[%clk 0:00:02]} 23. exd5 {[%clk 0:01:25]}  Ne5 {[%clk 0:00:02]} 24. cxb4 {[%clk 0:01:21]}  Bb7 {[%clk 0:00:02]} 25. Rxd8+ {[%clk 0:01:20]}  Qxd8 {[%clk 0:00:03]} 26. Re1 {[%clk 0:01:20]}  Qd6 {[%clk 0:00:02]} 27. Qd4 {[%clk 0:01:16]}  Ba6 {[%clk 0:00:01]} 28. Qxe5 {[%clk 0:01:15]} 1-0


[Site "https://www.chess.com"]